bitfinex-derivatives/quotes_BNBF0:USTF0_20250507
["timestamp","ask_amount","ask_price","bid_price","bid_amount"]
[1746623976661,1.0098287,606.06,605.28,3.81742558]
[1746623977160,1.0098287,606.05,605.28,3.81742558]
[1746623977759,1.0098287,606.04,605.28,3.81742558]
[1746623977960,1.0098287,606.03,605.28,3.81742558]
[1746623978563,1.0098287,606.02,605.28,3.81742558]
[1746623979060,1.0098287,606.01,605.28,3.81742558]
[1746623979460,1.0098287,606.0,605.28,3.81742558]
[1746623980155,1.0098287,605.99,605.28,3.81742558]
[1746623980858,1.0098287,605.98,605.28,3.81742558]
[1746623981360,1.0098287,605.97,605.28,3.81742558]
[1746623981661,1.0098287,605.96,605.28,3.81742558]
[1746623982155,1.0098287,605.95,605.28,3.81742558]
[1746623982459,1.0098287,605.94,605.28,3.81742558]
[1746623982859,1.0098287,605.93,605.28,3.81742558]
[1746623983255,1.0098287,605.92,605.28,3.81742558]
[1746623983761,1.0098287,605.91,605.28,3.81742558]
[1746623984355,0.32938076,607.2,605.28,3.81742558]
[1746623984761,1.01287534,607.19,605.28,3.81742558]
[1746623984960,0.32939703,607.17,605.28,3.81742558]
[1746623985261,1.31608486,607.16,605.28,3.81742558]
[1746623985760,1.64549274,607.15,605.28,3.81742558]
[1746623985962,0.32941331,607.14,605.28,3.81742558]
[1746623986157,1.64549817,607.14,605.28,3.81742558]
[1746623986464,1.31608486,607.13,605.28,3.81742558]
[1746623986762,0.32942416,607.12,605.28,3.81742558]
[1746623986961,1.01287534,607.11,605.28,3.81742558]
[1746623987158,0.63264453,607.1,605.28,3.81742558]
[1746623987363,1.6455253,607.09,605.28,3.81742558]
[1746623987563,1.34232121,607.08,605.28,3.81742558]
[1746623987764,0.32945129,607.07,605.28,3.81742558]
[1746623987969,0.30320952,607.06,605.28,3.81742558]
[1746623988166,1.34233749,607.05,605.28,3.81742558]
[1746623988369,0.32946758,607.04,605.28,3.81742558]
[1746623988567,1.01287534,607.03,605.28,3.81742558]
[1746623988763,0.32947843,607.02,605.28,3.81742558]
[1746623989069,1.01287534,607.01,605.28,3.81742558]
[1746623989266,0.32948929,607.0,605.28,3.81742558]
[1746623989569,1.31608486,606.99,605.28,3.81742558]
[1746623989868,0.30320952,606.98,605.28,3.81742558]
[1746623990162,1.31608486,606.98,605.28,3.81742558]
[1746623990367,1.01287534,606.97,605.28,3.81742558]
[1746623990665,0.30320952,606.96,605.28,3.81742558]
[1746623990868,1.01287534,606.95,605.28,3.81742558]
[1746623991271,0.30322144,606.94,605.28,3.81742558]
[1746623991673,1.01287534,606.93,605.28,3.81742558]
[1746623992167,1.31609678,606.92,605.28,3.81742558]
[1746623992471,0.30322144,606.91,605.28,3.81742558]
[1746623992870,1.01287534,606.9,605.28,3.81742558]
[1746623993070,0.30322144,606.89,605.28,3.81742558]
[1746623993571,1.01287534,606.88,605.28,3.81742558]
[1746623993969,0.30322144,606.87,605.28,3.81742558]
[1746623994175,1.31609678,606.87,605.28,3.81742558]
[1746623994473,1.01287534,606.86,605.28,3.81742558]
[1746623994771,1.01287534,606.85,605.28,3.81742558]
[1746623994967,1.31609678,606.85,605.28,3.81742558]
[1746623995167,0.30322144,606.84,605.28,3.81742558]
[1746623995568,1.01287534,606.83,605.28,3.81742558]
[1746623996074,1.01287534,606.82,605.28,3.81742558]
[1746623996374,1.31609678,606.82,605.28,3.81742558]
[1746623996570,1.31609678,606.81,605.28,3.81742558]
[1746623996776,0.30322144,606.8,605.28,3.81742558]
[1746623997275,1.01287534,606.79,605.28,3.81742558]
[1746623997574,1.01287534,606.78,605.28,3.81742558]
[1746623997774,1.31609678,606.78,605.28,3.81742558]
[1746623997974,0.30322144,606.77,605.28,3.81742558]
[1746623998374,1.01287534,606.76,605.28,3.81742558]
[1746623998974,0.30322315,606.75,605.28,3.81742558]
[1746623999274,1.01287534,606.74,605.28,3.81742558]
[1746623999674,0.30322315,606.73,605.28,3.81742558]
[1746623999868,1.01287534,606.72,605.28,3.81742558]
[1746624000175,0.32948929,607.0,605.28,3.81742558]
[1746624000373,1.01040086,606.71,605.28,3.81742558]
[1746624000574,1.01040086,606.71,605.29,0.28711568]
[1746624001076,1.01040086,606.7,605.29,0.28711568]
[1746624001474,1.01040086,606.69,605.29,0.28711568]
[1746624001977,1.01040086,606.68,605.28,2.08342558]
[1746624002571,1.31361746,606.67,605.3,0.33041467]
[1746624003074,0.3032166,606.66,605.3,0.33041467]
[1746624003268,1.01040086,606.65,605.3,1.49941467]
[1746624003574,1.01040086,606.65,605.3,2.22941467]
[1746624003774,0.3032166,606.64,605.3,2.22941467]
[1746624004074,1.01040086,606.63,605.3,2.22941467]
[1746624004371,0.3032166,606.62,605.3,2.22941467]
[1746624004577,1.31361746,606.62,605.3,2.22941467]
[1746624005277,0.3032166,606.61,605.3,2.22941467]
[1746624005478,1.01040086,606.6,605.3,2.22941467]
[1746624005774,0.3032166,606.59,605.3,2.22941467]
[1746624005977,1.31361746,606.59,605.3,2.22941467]
[1746624006377,1.01040086,606.58,605.3,2.22941467]
[1746624006578,0.3032166,606.57,605.3,2.22941467]
[1746624006780,1.01040086,606.56,605.3,2.22941467]
[1746624006979,0.3032166,606.55,605.3,2.22941467]
[1746624007579,1.01040086,606.54,605.3,2.22941467]
[1746624007974,0.3032166,606.53,605.3,2.22941467]
[1746624008173,1.01040086,606.52,605.3,2.22941467]
[1746624008579,1.01040086,606.51,605.3,2.22941467]
[1746624008879,1.31361746,606.51,605.3,2.22941467]
[1746624009075,0.3032166,606.5,605.3,2.22941467]
[1746624009278,1.01040086,606.49,605.3,2.22941467]
[1746624009477,0.3032166,606.48,605.3,2.22941467]
[1746624009975,1.01040086,606.47,605.3,2.22941467]
[1746624010281,0.3032166,606.46,605.3,2.22941467]
[1746624010679,1.01040086,606.47,605.3,2.22941467]
[1746624010876,1.01040086,606.45,605.3,2.22941467]
[1746624011475,1.01040086,606.44,605.3,2.22941467]
[1746624012376,1.01053389,606.43,605.3,2.22941467]
[1746624012884,1.01053389,606.42,605.3,2.22941467]
[1746624013582,1.01053389,606.41,605.3,2.22941467]
[1746624014283,1.01053389,606.4,605.3,2.22941467]
[1746624014583,1.01053389,606.39,605.3,2.22941467]
[1746624015384,1.01053389,606.38,605.3,3.25441467]
[1746624015684,1.01053389,606.37,605.3,3.25441467]
[1746624016181,1.01053389,606.36,605.3,3.25441467]
[1746624016781,1.01053389,606.35,605.3,3.25441467]
[1746624017482,1.01053389,606.34,605.3,3.25441467]
[1746624018081,1.01053389,606.33,605.3,3.25441467]
[1746624018387,1.01053389,606.32,605.3,3.25441467]
[1746624018886,0.28713108,606.73,605.3,3.25441467]
[1746624018887,1.01053389,606.31,605.3,3.25441467]
[1746624019283,1.01053389,606.3,605.3,3.25441467]
[1746624020186,1.01053389,606.29,605.3,3.25441467]
[1746624020387,1.01053389,606.28,605.3,3.25441467]
[1746624020785,1.01053389,606.27,605.3,3.25441467]
[1746624021687,1.01053389,606.26,605.3,3.25441467]
[1746624022185,1.01053389,606.25,605.3,3.25441467]
[1746624022488,1.01053389,606.24,605.3,3.25441467]
[1746624023187,1.01053389,606.23,605.3,3.25441467]
[1746624023387,1.01053389,606.23,605.3,4.38741467]
[1746624023587,1.01053389,606.22,605.3,4.38741467]
[1746624023890,1.01053389,606.21,605.3,4.38741467]
[1746624024393,1.01053389,606.2,605.3,4.38741467]
[1746624024693,1.01053389,606.19,605.3,4.38741467]
[1746624025294,1.01053389,606.18,605.3,4.38741467]
[1746624026294,1.01053389,606.17,605.3,4.38741467]
[1746624026894,1.01053389,606.16,605.3,4.38741467]
[1746624027496,1.01053389,606.15,605.3,4.38741467]
[1746624027795,1.01053389,606.14,605.3,4.38741467]
[1746624028090,1.01053389,606.13,605.3,4.38741467]
[1746624028695,1.01053389,606.12,605.3,4.38741467]
[1746624029296,1.01053389,606.11,605.3,4.38741467]
[1746624029796,1.01053389,606.1,605.3,4.38741467]
[1746624030197,1.01053389,606.09,605.3,4.38741467]
[1746624030597,1.01053389,606.08,605.3,4.38741467]
[1746624031395,1.01053389,606.07,605.3,4.38741467]
[1746624032001,1.01053389,606.06,605.3,4.38741467]
[1746624032201,1.01053389,606.05,605.3,4.38741467]
[1746624032601,1.01053389,606.04,605.3,4.38741467]
[1746624033002,1.01053389,606.03,605.3,4.38741467]
[1746624033502,1.01053389,606.02,605.3,4.38741467]
[1746624034204,1.01053389,606.01,605.3,4.38741467]
[1746624034805,1.01053389,606.0,605.3,4.38741467]
[1746624035199,1.01053389,605.99,605.3,4.38741467]
[1746624035601,1.01053389,605.98,605.3,4.38741467]
[1746624035805,1.01053389,605.97,605.3,4.38741467]
[1746624036206,1.01053389,605.96,605.3,4.38741467]
[1746624036808,1.01053389,605.95,605.3,4.38741467]
[1746624037302,1.01053389,605.94,605.3,4.38741467]
[1746624037708,1.01053389,605.93,605.3,4.38741467]
[1746624037907,0.2871761,606.72,605.3,4.38741467]
[1746624038205,1.0130832,606.71,605.3,4.38741467]
[1746624038505,1.0130832,606.7,605.3,4.38741467]
[1746624039108,1.0130832,606.69,605.3,4.38741467]
[1746624039410,1.0130832,606.68,605.3,4.38741467]
[1746624039810,1.0130832,606.67,605.3,4.38741467]
[1746624040207,1.0130832,606.66,605.3,4.38741467]
[1746624040613,1.0130832,606.65,605.3,4.38741467]
[1746624040813,1.0130832,606.64,605.3,4.38741467]
[1746624041413,1.0130832,606.63,605.3,4.38741467]
[1746624042113,1.0130832,606.62,605.3,4.38741467]
[1746624042613,1.0130832,606.61,605.3,4.38741467]
[1746624043014,1.0130832,606.6,605.3,4.38741467]
[1746624043514,1.0130832,606.59,605.3,4.38741467]
[1746624044016,1.0130832,606.58,605.3,4.38741467]
[1746624044417,0.28710029,606.72,605.3,4.38741467]
[1746624044610,1.01335331,606.57,605.3,4.38741467]
[1746624045415,1.01335331,606.56,605.3,4.38741467]
[1746624045716,1.01335331,606.55,605.3,4.38741467]
[1746624046114,1.01335331,606.54,605.3,4.38741467]
[1746624046917,1.01335331,606.53,605.3,4.38741467]
[1746624047118,1.01335331,606.52,605.3,4.38741467]
[1746624047418,1.01335331,606.51,605.3,4.38741467]
[1746624047918,1.01335331,606.5,605.3,4.38741467]
[1746624048312,1.01335331,606.49,605.3,4.38741467]
[1746624048618,1.01335331,606.48,605.3,4.38741467]
[1746624049118,1.01335331,606.47,605.3,4.38741467]
[1746624049619,1.01335331,606.46,605.3,4.38741467]
[1746624050119,1.01335331,606.45,605.3,4.38741467]
[1746624050618,1.01335331,606.44,605.3,4.38741467]
[1746624050916,1.01335331,606.43,605.3,4.38741467]
[1746624051115,1.01335331,606.42,605.3,4.38741467]
[1746624051414,1.01335331,606.41,605.3,4.38741467]
[1746624052117,1.01335331,606.4,605.3,4.38741467]
[1746624052619,1.01335331,606.39,605.3,4.38741467]
[1746624052818,1.01335331,606.38,605.3,4.38741467]
[1746624053218,1.01335331,606.37,605.3,4.38741467]
[1746624053515,1.01335331,606.36,605.3,4.38741467]
[1746624053820,1.01335331,606.35,605.3,4.38741467]
[1746624054320,1.01335331,606.34,605.3,4.38741467]
[1746624054817,1.01335331,606.33,605.3,4.38741467]
[1746624055223,1.01335331,606.32,605.3,4.38741467]
[1746624055817,1.01335331,606.31,605.3,4.38741467]
[1746624056322,1.01335331,606.3,605.3,4.38741467]
[1746624056821,1.01335331,606.29,605.3,4.38741467]
[1746624057523,1.01335331,606.28,605.3,4.38741467]
[1746624057718,1.01335331,606.27,605.3,4.38741467]
[1746624058224,1.01335331,606.26,605.3,4.38741467]
[1746624058519,1.01335331,606.25,605.3,4.38741467]
[1746624058825,1.01335331,606.24,605.3,4.38741467]
[1746624059324,1.01335331,606.23,605.3,4.38741467]
[1746624059926,1.01335331,606.22,605.3,4.38741467]
[1746624060224,1.01335331,606.21,605.3,4.38741467]
[1746624060922,1.01335331,606.2,605.3,4.38741467]
[1746624061319,1.01335331,606.19,605.3,4.38741467]
[1746624061524,1.01335331,606.18,605.3,4.38741467]
[1746624062225,1.01335331,606.17,605.3,4.38741467]
[1746624062627,1.01335331,606.16,605.3,4.38741467]
[1746624063227,1.01335331,606.15,605.3,4.38741467]
[1746624063823,1.01335331,606.14,605.3,4.38741467]
[1746624064327,1.01335331,606.13,605.3,4.38741467]
[1746624065025,1.01335331,606.12,605.3,4.38741467]
[1746624065224,1.01335331,606.11,605.3,4.38741467]
[1746624068526,1.01335331,606.1,605.3,4.38741467]
[1746624068931,1.01335331,606.09,605.3,4.38741467]
[1746624069330,1.01335331,606.08,605.3,4.38741467]
[1746624070030,1.01335331,606.07,605.3,4.38741467]
[1746624070532,1.01335331,606.06,605.3,4.38741467]
[1746624071129,1.01335331,606.05,605.3,4.38741467]
[1746624071528,1.01335331,606.04,605.3,4.38741467]
[1746624072233,1.01335331,606.03,605.3,4.38741467]
[1746624072835,1.01335331,606.02,605.3,4.38741467]
[1746624073433,1.01335331,606.01,605.3,4.38741467]
[1746624073941,1.01335331,606.0,605.3,4.38741467]
[1746624074336,1.01335331,605.99,605.3,4.38741467]
[1746624074833,1.01335331,605.98,605.3,4.38741467]
[1746624075334,1.01335331,605.97,605.3,4.38741467]
[1746624075935,1.01335331,605.96,605.3,4.38741467]
[1746624076132,1.01335331,605.95,605.3,4.38741467]
[1746624076638,1.01335331,605.94,605.3,4.38741467]
[1746624077138,1.01335331,605.93,605.3,4.38741467]
[1746624077638,1.01335331,605.92,605.3,4.38741467]
[1746624077837,1.01335331,605.91,605.3,4.38741467]
[1746624078331,1.01335331,605.9,605.3,4.38741467]
[1746624078736,1.01335331,605.89,605.3,4.38741467]
[1746624079239,1.01335331,605.88,605.3,4.38741467]
[1746624080138,0.28726263,606.4,605.3,4.38741467]
[1746624080139,1.01335331,605.87,605.3,4.38741467]
[1746624080840,1.01335331,605.86,605.3,4.38741467]
[1746624081141,1.01335331,605.86,605.3,1.46341467]
[1746624081441,1.01335331,605.85,605.3,1.46341467]
[1746624082043,1.01335331,605.84,605.3,1.46341467]
[1746624082440,1.01335331,605.83,605.3,0.33041467]
[1746624082842,1.01335331,605.82,605.3,0.33041467]
[1746624083339,1.01335331,605.81,605.3,0.33041467]
[1746624083739,1.01335331,605.8,605.3,0.33041467]
[1746624084245,1.01335331,605.79,605.3,0.33041467]
[1746624084645,1.01335331,605.78,605.3,0.33041467]
[1746624085245,1.01335331,605.77,605.3,0.33041467]
[1746624085646,1.01335331,605.76,605.3,0.33041467]
[1746624086141,1.01335331,605.75,605.3,0.33041467]
[1746624086948,0.28728871,606.37,605.3,0.33041467]
[1746624087447,0.30331972,606.36,605.3,0.33041467]
[1746624087849,1.01374588,606.35,605.3,0.33041467]
[1746624088147,1.3170656,606.34,605.3,1.47641467]
[1746624088448,1.01374588,606.34,605.3,1.47641467]
[1746624088647,1.01374588,606.33,605.3,1.47641467]
[1746624088849,1.31707203,606.33,605.3,1.47641467]
[1746624089142,1.31707203,606.32,605.3,1.47641467]
[1746624089350,0.30332615,606.31,605.3,1.47641467]
[1746624089550,1.01374588,606.3,605.3,1.47641467]
[1746624089745,1.01374588,606.29,605.3,1.47641467]
[1746624089949,1.31707203,606.29,605.3,1.47641467]
[1746624090342,1.01374588,606.29,605.3,1.47641467]
[1746624090546,1.31707819,606.28,605.3,1.47641467]
[1746624090849,1.01374588,606.28,605.3,1.47641467]
[1746624091043,1.01374588,606.27,605.3,1.47641467]
[1746624091449,1.01374588,606.26,605.3,1.47641467]
[1746624091748,1.01374588,606.25,605.3,1.47641467]
[1746624092149,1.01374588,606.24,605.3,1.47641467]
[1746624092350,1.01374588,606.23,605.3,1.47641467]
[1746624092950,1.01374588,606.22,605.3,1.47641467]
[1746624093250,1.01374588,606.21,605.3,1.47641467]
[1746624093451,0.28723536,606.35,605.3,1.47641467]
[1746624093452,1.01374588,606.2,605.3,1.47641467]
[1746624094151,1.01374588,606.19,605.3,1.47641467]
[1746624094452,1.01374588,606.18,605.3,1.47641467]
[1746624095147,1.01374588,606.17,605.3,1.47641467]
[1746624095349,1.01374588,606.16,605.3,1.47641467]
[1746624096158,1.01374588,606.15,605.3,1.47641467]
[1746624096958,1.01374588,606.14,605.3,1.47641467]
[1746624097261,1.01374588,606.13,605.3,1.47641467]
[1746624097861,1.01374588,606.12,605.3,1.47641467]
[1746624098461,1.01374588,606.11,605.3,1.47641467]
[1746624098663,1.01374588,606.1,605.3,1.47641467]
[1746624099062,1.01374588,606.1,605.3,2.40541467]
[1746624099259,1.01374588,606.09,605.3,2.40541467]
[1746624100164,1.01374588,606.08,605.3,2.40541467]
[1746624100968,1.01374588,606.07,605.3,2.40541467]
[1746624101860,1.01374588,606.06,605.3,2.40541467]
[1746624102265,1.01374588,606.05,605.3,2.40541467]
[1746624102667,1.01374588,606.04,605.3,2.40541467]
[1746624102870,1.01374588,606.04,605.3,3.11141467]
[1746624103169,1.01374588,606.03,605.3,3.11141467]
[1746624104170,1.01374588,606.02,605.3,3.11141467]
[1746624104470,1.01374588,606.01,605.3,3.11141467]
[1746624105074,1.01374588,606.0,605.3,3.11141467]
[1746624106071,1.01374588,605.99,605.3,3.11141467]
[1746624106371,1.01374588,605.98,605.3,3.11141467]
[1746624107071,1.01374588,605.97,605.3,3.11141467]
[1746624107571,1.01374588,605.96,605.3,3.11141467]
[1746624107870,1.01374588,605.95,605.3,3.11141467]
[1746624108267,1.01374588,605.94,605.3,3.11141467]
[1746624108670,1.01374588,605.93,605.3,3.11141467]
[1746624109067,0.28726974,606.34,605.3,3.11141467]
[1746624109068,1.01374588,605.92,605.3,3.11141467]
[1746624109569,1.01374588,605.91,605.3,3.11141467]
[1746624110273,1.01374588,605.9,605.3,3.11141467]
[1746624110873,1.01374588,605.89,605.3,3.11141467]
[1746624111275,1.01374588,605.88,605.3,3.11141467]
[1746624111877,1.01374588,605.87,605.3,3.11141467]
[1746624112278,1.01374588,605.86,605.3,3.11141467]
[1746624112578,1.01374588,605.86,605.3,1.96541467]
[1746624112978,1.01374588,605.85,605.3,1.96541467]
[1746624113175,1.01374588,605.84,605.3,1.96541467]
[1746624113479,1.01374588,605.83,605.3,1.96541467]
[1746624113679,1.01374588,605.82,605.3,1.96541467]
[1746624114680,1.01374588,605.81,605.3,1.96541467]
[1746624115282,1.01374588,605.8,605.3,1.96541467]
[1746624115479,1.01374588,605.79,605.3,1.96541467]
[1746624116176,1.01374588,605.78,605.3,1.96541467]
[1746624116881,1.01374588,605.77,605.3,1.96541467]
[1746624117280,1.01374588,605.76,605.3,1.96541467]
[1746624117480,1.01374588,605.75,605.3,1.96541467]
[1746624117785,1.01374588,605.74,605.3,1.96541467]
[1746624118280,1.01374588,605.73,605.3,1.96541467]
[1746624118479,1.01374588,605.72,605.3,1.96541467]
[1746624118675,1.01374588,605.71,605.3,1.96541467]
[1746624119583,1.01374588,605.7,605.3,1.96541467]
[1746624119977,1.01374588,605.69,605.3,1.96541467]
[1746624120581,1.01374588,605.68,605.3,1.96541467]
[1746624120779,1.01374588,605.67,605.3,1.96541467]
[1746624121178,1.01374588,605.66,605.3,1.96541467]
[1746624121582,0.68433057,607.01,605.3,1.96541467]
[1746624121884,0.28727685,606.46,605.3,1.96541467]
[1746624122182,0.30330829,606.99,605.3,1.96541467]
[1746624122383,1.01547207,606.45,605.3,1.96541467]
[1746624123084,1.01547207,606.44,605.3,1.96541467]
[1746624123483,1.01547207,606.43,605.3,1.96541467]
[1746624123787,1.01547207,606.42,605.3,1.96541467]
[1746624124286,1.01547207,606.41,605.3,1.96541467]
[1746624124688,1.01547207,606.4,605.3,1.96541467]
[1746624124987,1.01547207,606.39,605.3,1.96541467]
[1746624125581,1.01547207,606.38,605.3,1.96541467]
[1746624126187,1.01547207,606.37,605.3,1.96541467]
[1746624126886,1.01547207,606.36,605.3,1.96541467]
[1746624127288,1.01547207,606.35,605.3,1.96541467]
[1746624127683,1.01547207,606.34,605.3,1.96541467]
[1746624128282,1.01547207,606.33,605.3,1.96541467]
[1746624128686,1.01547207,606.32,605.3,1.96541467]
[1746624128889,1.01547207,606.31,605.3,1.96541467]
[1746624129487,1.01547207,606.3,605.3,1.96541467]
[1746624129990,1.01547207,606.29,605.3,1.96541467]
[1746624130385,1.01547207,606.28,605.3,1.96541467]
[1746624130892,1.01547207,606.27,605.3,1.96541467]
[1746624131191,1.01547207,606.26,605.3,1.96541467]
[1746624132090,1.01547207,606.25,605.3,1.96541467]
[1746624132486,1.01547207,606.24,605.3,1.96541467]
[1746624132791,1.01547207,606.23,605.3,1.96541467]
[1746624132989,1.01547207,606.22,605.3,1.96541467]
[1746624133491,1.01547207,606.21,605.3,1.96541467]
[1746624133792,1.01547207,606.2,605.3,1.96541467]
[1746624134093,1.01547207,606.19,605.3,1.96541467]
[1746624134591,1.01547207,606.18,605.3,1.96541467]
[1746624135188,1.01547207,606.17,605.3,1.96541467]
[1746624135492,0.28723536,606.37,605.3,1.96541467]
[1746624135493,1.01547207,606.16,605.3,1.96541467]
[1746624135888,1.01547207,606.15,605.3,1.96541467]
[1746624136293,1.01547207,606.14,605.3,1.96541467]
[1746624136792,1.01547207,606.13,605.3,1.96541467]
[1746624137489,1.01547207,606.12,605.3,1.96541467]
[1746624138395,1.01547207,606.11,605.3,1.96541467]
[1746624138994,1.01547207,606.1,605.3,1.96541467]
[1746624139597,1.01547207,606.09,605.3,1.96541467]
[1746624140296,1.01547207,606.08,605.3,1.96541467]
[1746624141092,1.01547207,606.07,605.3,1.96541467]
[1746624141699,1.01547207,606.06,605.3,1.96541467]
[1746624142295,1.01547207,606.05,605.3,1.96541467]
[1746624142998,1.01547207,606.04,605.3,1.96541467]
[1746624143398,1.01547207,606.03,605.3,1.96541467]
[1746624143698,1.01547207,606.02,605.3,1.96541467]
[1746624144202,1.01547207,606.01,605.3,1.96541467]
[1746624144802,1.01547207,606.0,605.3,1.96541467]
[1746624145403,1.01547207,605.99,605.3,1.96541467]
[1746624145702,1.01547207,605.98,605.3,1.96541467]
[1746624146298,1.01547207,605.97,605.3,1.96541467]
[1746624146703,1.01547207,605.96,605.3,1.96541467]
[1746624147799,1.01547207,605.95,605.3,1.96541467]
[1746624148102,1.01547207,605.94,605.3,1.96541467]
[1746624148303,1.01547207,605.93,605.3,1.96541467]
[1746624148502,1.01547207,605.92,605.3,1.96541467]
[1746624148899,1.01547207,605.91,605.3,1.96541467]
[1746624149399,1.01547207,605.9,605.3,1.96541467]
[1746624149707,1.01547207,605.89,605.3,1.96541467]
[1746624150003,1.01547207,605.88,605.3,1.96541467]
[1746624150499,1.01547207,605.87,605.3,1.96541467]
[1746624150699,1.01547207,605.86,605.3,1.96541467]
[1746624150905,1.01547207,605.86,605.3,1.25941467]
[1746624151107,1.01547207,605.86,605.3,0.33041467]
[1746624151605,1.01547207,605.85,605.3,0.33041467]
[1746624152007,1.01547207,605.84,605.3,0.33041467]
[1746624152506,1.01547207,605.83,605.3,0.33041467]
[1746624152707,1.01547207,605.82,605.3,0.33041467]
[1746624153205,1.01547207,605.81,605.3,0.33041467]
[1746624153402,0.28727923,606.33,605.3,0.33041467]
[1746624153403,1.01796094,605.8,605.3,0.33041467]
[1746624154106,1.01796094,605.79,605.3,0.33041467]
[1746624154706,1.01796094,605.78,605.3,0.33041467]
[1746624155407,1.01796094,605.77,605.3,0.33041467]
[1746624156010,1.01796094,605.76,605.3,0.33041467]
[1746624156508,1.01796094,605.75,605.3,0.33041467]
[1746624157008,1.01796094,605.74,605.3,0.33041467]
[1746624157308,1.01796094,605.73,605.3,0.33041467]
[1746624157909,1.01796094,605.72,605.3,0.33041467]
[1746624158406,1.01796094,605.71,605.3,0.33041467]
[1746624158908,1.01796094,605.7,605.3,0.33041467]
[1746624159510,1.01796094,605.69,605.3,0.33041467]
[1746624160010,1.01796094,605.68,605.3,0.33041467]
[1746624160512,1.01796094,605.67,605.3,0.33041467]
[1746624161212,1.01796094,605.66,605.3,0.33041467]
[1746624161611,0.28729583,606.33,605.3,0.33041467]
[1746624161813,0.68450042,606.82,605.3,0.33041467]
[1746624162013,0.28715951,606.38,605.3,0.33041467]
[1746624162314,0.30329876,606.37,605.3,0.33041467]
[1746624162515,1.01761682,606.36,605.3,0.33041467]
[1746624163316,1.01761682,606.35,605.3,0.33041467]
[1746624163714,1.01761682,606.34,605.3,0.33041467]
[1746624164114,1.01761682,606.33,605.3,0.33041467]
[1746624164516,1.01761682,606.32,605.3,0.33041467]
[1746624165018,1.01761682,606.31,605.3,0.33041467]
[1746624165312,1.01761682,606.3,605.3,0.33041467]
[1746624165816,1.01761682,606.29,605.3,0.33041467]
[1746624166317,1.32091591,606.28,605.3,0.33041467]
[1746624166719,1.01761682,606.27,605.3,0.33041467]
[1746624167017,1.32091591,606.27,605.3,0.33041467]
[1746624167213,1.01761682,606.26,605.3,0.33041467]
[1746624167417,1.32091591,606.26,605.3,0.33041467]
[1746624167618,1.32091591,606.25,605.3,0.33041467]
[1746624167819,1.01761682,606.25,605.3,0.33041467]
[1746624168118,1.01761682,606.24,605.3,1.15641467]
[1746624168619,1.01761682,606.23,605.3,1.84041467]
[1746624169415,1.01761682,606.22,605.3,1.84041467]
[1746624170018,1.01761682,606.21,605.3,1.84041467]
[1746624170519,1.01761682,606.2,605.3,1.84041467]
[1746624171020,1.01761682,606.19,605.3,1.84041467]
[1746624172021,1.01761682,606.18,605.3,1.84041467]
[1746624172622,1.01761682,606.17,605.3,1.84041467]
[1746624173223,1.01761682,606.16,605.3,1.84041467]
[1746624174121,1.01761682,606.15,605.3,1.84041467]
[1746624174923,1.01761682,606.14,605.3,1.84041467]
[1746624175620,1.01761682,606.13,605.3,1.84041467]
[1746624176121,1.01761682,606.12,605.3,1.84041467]
[1746624176620,1.01761682,606.11,605.3,1.84041467]
[1746624177325,1.01761682,606.1,605.3,1.84041467]
[1746624177721,1.01761682,606.09,605.3,1.84041467]
[1746624178126,1.01761682,606.08,605.3,1.84041467]
[1746624178526,1.01761682,606.07,605.3,1.84041467]
[1746624179027,1.01761682,606.06,605.3,1.84041467]
[1746624179426,1.01761682,606.05,605.3,1.84041467]
[1746624179926,1.01761682,606.04,605.3,1.84041467]
[1746624180522,1.01761682,606.03,605.3,1.84041467]
[1746624180727,1.01761682,606.02,605.3,1.84041467]
[1746624181027,1.01761682,606.01,605.3,1.84041467]
[1746624181528,1.01761682,606.0,605.3,1.84041467]
[1746624181827,1.01761682,605.99,605.3,1.84041467]
[1746624182228,1.01761682,605.98,605.3,1.84041467]
[1746624182830,1.01761682,605.97,605.3,1.84041467]
[1746624183529,1.01761682,605.96,605.3,1.84041467]
[1746624184129,1.01761682,605.95,605.3,1.84041467]
[1746624184428,1.01761682,605.94,605.3,1.84041467]
[1746624185129,1.01761682,605.93,605.3,1.84041467]
[1746624185625,1.01761682,605.92,605.3,1.84041467]
[1746624185929,1.01761682,605.91,605.3,1.84041467]
[1746624186527,1.01761682,605.9,605.3,1.84041467]
[1746624187029,1.01761682,605.89,605.3,1.84041467]
[1746624187330,1.01761682,605.88,605.3,1.84041467]
[1746624188026,1.01761682,605.87,605.3,1.84041467]
[1746624188232,1.01761682,605.87,605.3,2.78041467]
[1746624188431,0.28726855,606.37,605.3,3.79441467]
[1746624188432,1.01761682,605.86,605.3,3.79441467]
[1746624188827,1.01761682,605.86,605.3,2.96841467]
[1746624190428,1.01761682,605.85,605.3,2.96841467]
[1746624191027,1.01761682,605.84,605.3,2.96841467]
[1746624191427,1.01761682,605.83,605.3,2.96841467]
[1746624191731,1.01761682,605.82,605.3,2.96841467]
[1746624192232,1.01761682,605.81,605.3,2.96841467]
[1746624192834,1.01761682,605.8,605.3,2.96841467]
[1746624193532,1.01761682,605.79,605.3,2.96841467]
[1746624194135,1.01761682,605.78,605.3,2.96841467]
[1746624194429,1.01761682,605.77,605.3,2.96841467]
[1746624195430,1.01761682,605.76,605.3,2.96841467]
[1746624195835,1.01761682,605.75,605.3,2.96841467]